[Event "Budapest Spring Festival 2019"]
[Site "Budapest"]
[Date "2019.04.12"]
[Round "4.18"]
[White "Akesson, Ralf"]
[Black "Vetoshko, Volodymyr"]
[Result "1-0"]
[ECO "A05"]
[WhiteElo "2346"]
[BlackElo "2510"]
[Annotator "ChessBase"]
[PlyCount "83"]
[EventDate "2019.04.09"]
[EventType "swiss"]
[EventCountry "HUN"]
[SourceTitle "playchess.com"]
[Source "ChessBase"]
[SourceQuality "1"]
[TimeControl "40/5400+30:1800+30"]

1. Nf3 {[%emt 0:03:30]} Nf6 {[%emt 0:00:10]} 2. c4 {[%emt 0:00:20]} b6 {[%emt 0:00:09]} 3. g3 {[%emt 0:00:30]} Bb7 {[%emt 0:00:34]} 4. d4 {[%emt 0:00:55]} g6 {[%emt 0:02:09]} 5. Bg2 {[%emt 0:00:21]} Bg7 {[%emt 0:00:09]} 6. O-O {[%emt 0:00:21]} O-O {[%emt 0:00:16]} 7. d5 {[%emt 0:04:10]} Ne4 {[%emt 0:00:22]} 8. Nbd2 {[%emt 0:04:54]} Nd6 {[%emt 0:00:24]} 9. e4 {[%emt 0:01:12]} c6 {[%emt 0:02:18]} 10. Re1 {[%emt 0:07:02]} cxd5 {[%emt 0:06:30]} 11. cxd5 {[%emt 0:02:02]} Na6 {[%emt 0:00:52]} 12. e5 {[%emt 0:05:31]} Ne8 {[%emt 0:15:24]} 13. Ne4 {[%emt 0:02:32]} d6 {[%emt 0:03:03]} 14. Nc3 {[%emt 0:06:25]} Nc5 {[%emt 0:07:30]} 15. Bf4 {[%emt 0:03:47]} a6 {[%emt 0:22:09]} 16. Qd2 {[%emt 0:05:45]} dxe5 {[%emt 0:11:07]} 17. Nxe5 {[%emt 0:04:11]} Rc8 {[%emt 0:11:35]} 18. Rad1 {[%emt 0:04:05]} Bxe5 {[%emt 0:01:48]} 19. Bxe5 {[%emt 0:04:41]} Nd6 {[%emt 0:00:02]} 20. Qf4 {[%emt 0:07:04]} a5 {[%emt 0:03:26]} 21. h4 {[%emt 0:03:40]} Ba6 {[%emt 0:01:20]} 22. Bh3 {[%emt 0:07:09]} Ra8 {[%emt 0:04:32]} 23. Qh6 {[%emt 0:09:52]} f6 {[%emt 0:00:04]} 24. Be6+ {[%emt 0:01:03]} Kh8 {[%emt 0:02:53]} 25. Bd4 {[%emt 0:02:16]} Nxe6 {[%emt 0:01:34]} 26. Rxe6 {[%emt 0:01:31]} Nf5 {[%emt 0:01:10]} 27. Qf4 {[%emt 0:00:13]} Qb8 {[%emt 0:01:26]} 28. d6 {[%emt 0:00:35]} Nxd6 {[%emt 0:00:31]} 29. Rxe7 {[%emt 0:02:33]} Nf5 {[%emt 0:00:07]} 30. Rc7 {[%emt 0:00:20]} Qe8 {[%emt 0:00:54]} 31. Nd5 {[%emt 0:02:22]} Qe6 {[%emt 0:00:15]} 32. Nxf6 {[%emt 0:02:02]} Rxf6 {[%emt 0:00:03]} 33. Bc3 {[%emt 0:00:18]} Kg8 {[%emt 0:00:36]} 34. g4 {[%emt 0:01:04]} Rf7 {[%emt 0:01:06]} 35. gxf5 {[%emt 0:00:28]} Qxf5 {[%emt 0:00:14]} 36. Rxf7 {[%emt 0:00:32]} Qxf7 {[%emt 0:00:44]} 37. Qe5 {[%emt 0:00:06]} Kf8 {[%emt 0:00:31]} 38. Re1 {[%emt 0:02:34]} Bb7 {[%emt 0:00:29]} 39. Qh8+ {[%emt 0:00:57]} Qg8 {[%emt 0:00:02]} 40. Qf6+ {[%emt 0:00:00]} Qf7 {[%emt 0:00:00]} 41. Qd6+ {[%emt 0:02:15]} Kg8 {[%emt 0:00:03]} 42. Re7 {[%emt 0:00:23]} 1-0

[Event "Budapest Spring Festival 2019"]
[Site "Budapest"]
[Date "2019.04.12"]
[Round "4.19"]
[White "Saravanan, V.."]
[Black "Kosic, Dragan"]
[Result "1/2-1/2"]
[ECO "A35"]
[WhiteElo "2335"]
[BlackElo "2508"]
[Annotator "ChessBase"]
[PlyCount "51"]
[EventDate "2019.04.09"]
[EventType "swiss"]
[EventCountry "HUN"]
[SourceTitle "playchess.com"]
[Source "ChessBase"]
[SourceQuality "1"]
[TimeControl "40/5400+30:1800+30"]

1. Nf3 {[%emt 0:00:04]} Nf6 {[%emt 0:00:10]} 2. c4 {[%emt 0:00:05]} c5 {[%emt 0:00:14]} 3. Nc3 {[%emt 0:00:06]} Nc6 {[%emt 0:00:09]} 4. g3 {[%emt 0:00:08]} d5 {[%emt 0:00:44]} 5. d4 {[%emt 0:00:11]} cxd4 {[%emt 0:03:08]} 6. Nxd4 {[%emt 0:00:07]} dxc4 {[%emt 0:01:03]} 7. Nxc6 {[%emt 0:00:07]} Qxd1+ {[%emt 0:00:05]} 8. Nxd1 {[%emt 0:00:07]} bxc6 {[%emt 0:00:03]} 9. Bg2 {[%emt 0:01:06]} Nd5 {[%emt 0:07:01]} 10. Ne3 {[%emt 0:00:11]} Ba6 {[%emt 0:04:56]} 11. Nxd5 {[%emt 0:15:22]} cxd5 {[%emt 0:01:36]} 12. Bxd5 {[%emt 0:00:06]} Rc8 {[%emt 0:00:07]} 13. Bd2 {[%emt 0:15:32]} e6 {[%emt 0:01:53]} 14. Bf3 {[%emt 0:01:14]} Be7 {[%emt 0:06:53]} 15. Bc3 {[%emt 0:16:54]} O-O {[%emt 0:00:51]} 16. O-O-O {[%emt 0:00:22]} Bb5 {[%emt 0:01:19]} 17. h4 {[%emt 0:08:30]} Ba4 {[%emt 0:07:32]} 18. Rd2 {[%emt 0:00:12]} Rfd8 {[%emt 0:00:55]} 19. Rxd8+ {[%emt 0:01:35]} Rxd8 {[%emt 0:03:53]} 20. Be4 {[%emt 0:00:10]} f5 {[%emt 0:05:38]} 21. Bc2 {[%emt 0:00:09]} Bc6 {[%emt 0:00:07]} 22. Rd1 {[%emt 0:00:25]} Rxd1+ {[%emt 0:00:24]} 23. Kxd1 {[%emt 0:08:19]} Kf7 {[%emt 0:06:58]} 24. e3 {[%emt 0:06:32]} a6 {[%emt 0:01:57]} 25. Kd2 {[%emt 0:00:42]} Bd8 {[%emt 0:00:49]} 26. Bd1 {[%emt 0:06:52]} 1/2-1/2

[Event "Budapest Spring Festival 2019"]
[Site "Budapest"]
[Date "2019.04.12"]
[Round "4.20"]
[White "Galyas, Miklos"]
[Black "Daggupati, Balaji"]
[Result "1/2-1/2"]
[ECO "A20"]
[WhiteElo "2490"]
[BlackElo "2326"]
[Annotator "ChessBase"]
[PlyCount "117"]
[EventDate "2019.04.09"]
[EventType "swiss"]
[EventCountry "HUN"]
[SourceTitle "playchess.com"]
[Source "ChessBase"]
[SourceQuality "1"]
[TimeControl "40/5400+30:1800+30"]

1. c4 {[%emt 0:00:03]} e5 {[%emt 0:00:06]} 2. g3 {[%emt 0:00:17]} Nf6 {[%emt 0:00:07]} 3. Bg2 {[%emt 0:00:09]} Nc6 {[%emt 0:00:06]} 4. Nc3 {[%emt 0:00:39]} Bc5 {[%emt 0:00:08]} 5. Nf3 {[%emt 0:01:01]} d6 {[%emt 0:00:55]} 6. O-O {[%emt 0:00:09]} Bf5 {[%emt 0:00:12]} 7. d3 {[%emt 0:00:18]} h6 {[%emt 0:00:37]} 8. a3 {[%emt 0:00:45]} a6 {[%emt 0:00:28]} 9. b4 {[%emt 0:00:58]} Ba7 {[%emt 0:01:23]} 10. Bb2 {[%emt 0:00:39]} O-O {[%emt 0:00:14]} 11. Nh4 {[%emt 0:01:39]} Be6 {[%emt 0:07:16]} 12. Nd5 {[%emt 0:02:37]} g5 {[%emt 0:04:09]} 13. Nxf6+ {[%emt 0:00:31]} Qxf6 {[%emt 0:00:09]} 14. Nf3 {[%emt 0:00:08]} Qe7 {[%emt 0:06:59]} 15. Rc1 {[%emt 0:02:17]} f5 {[%emt 0:01:44]} 16. d4 {[%emt 0:07:47]} exd4 {[%emt 0:18:15]} 17. Nxd4 {[%emt 0:12:28]} Nxd4 {[%emt 0:00:18]} 18. Bxd4 {[%emt 0:00:08]} c5 {[%emt 0:02:41]} 19. bxc5 {[%emt 0:07:07]} Bxc5 {[%emt 0:01:08]} 20. Rb1 {[%emt 0:01:06]} Rab8 {[%emt 0:03:05]} 21. Bxc5 {[%emt 0:08:01]} dxc5 {[%emt 0:00:07]} 22. Rb6 {[%emt 0:01:17]} Bxc4 {[%emt 0:09:04]} 23. Rxh6 {[%emt 0:04:12]} Kg7 {[%emt 0:01:24]} 24. Rb6 {[%emt 0:02:37]} Rf6 {[%emt 0:02:49]} 25. Rxf6 {[%emt 0:04:29]} Kxf6 {[%emt 0:01:22]} 26. Qc1 {[%emt 0:01:29]} b5 {[%emt 0:01:01]} 27. Re1 {[%emt 0:03:15]} Re8 {[%emt 0:02:19]} 28. h4 {[%emt 0:13:10]} Kg6 {[%emt 0:03:08]} 29. e4 {[%emt 0:02:01]} f4 {[%emt 0:00:22]} 30. gxf4 {[%emt 0:06:45]} gxh4 {[%emt 0:00:33]} 31. f5+ {[%emt 0:00:40]} Kh7 {[%emt 0:01:42]} 32. Qf4 {[%emt 0:01:18]} Qf6 {[%emt 0:04:02]} 33. e5 {[%emt 0:01:57]} Qh6 {[%emt 0:00:06]} 34. Qxh6+ {[%emt 0:01:19]} Kxh6 {[%emt 0:00:06]} 35. Bc6 {[%emt 0:01:21]} Re7 {[%emt 0:04:46]} 36. f4 {[%emt 0:02:24]} Rc7 {[%emt 0:00:33]} 37. Be4 {[%emt 0:01:53]} Rg7+ {[%emt 0:04:50]} 38. Kf2 {[%emt 0:04:34]} Rg4 {[%emt 0:00:06]} 39. Rh1 {[%emt 0:03:47]} Rxf4+ {[%emt 0:01:00]} 40. Ke3 {[%emt 0:00:00]} Rg4 {[%emt 0:00:00]} 41. Bf3 {[%emt 0:08:23]} Rd4 {[%emt 0:06:30]} 42. Be4 {[%emt 0:07:30]} Bd5 {[%emt 0:00:22]} 43. Rxh4+ {[%emt 0:05:22]} Kg5 {[%emt 0:00:08]} 44. Rf4 {[%emt 0:03:22]} Rd1 {[%emt 0:05:26]} 45. Bxd5 {[%emt 0:01:17]} Re1+ {[%emt 0:01:30]} 46. Kf3 {[%emt 0:02:17]} Rf1+ {[%emt 0:00:08]} 47. Kg3 {[%emt 0:00:43]} Rxf4 {[%emt 0:00:06]} 48. f6 {[%emt 0:00:05]} Rg4+ {[%emt 0:03:21]} 49. Kf3 {[%emt 0:00:32]} Rf4+ {[%emt 0:02:10]} 50. Kg3 {[%emt 0:00:14]} c4 {[%emt 0:05:31]} 51. e6 {[%emt 0:01:34]} Rg4+ {[%emt 0:00:17]} 52. Kf3 {[%emt 0:00:52]} Kxf6 {[%emt 0:00:08]} 53. Kxg4 {[%emt 0:00:04]} c3 {[%emt 0:00:04]} 54. Bb3 {[%emt 0:00:31]} a5 {[%emt 0:00:13]} 55. a4 {[%emt 0:01:44]} bxa4 {[%emt 0:00:05]} 56. Bxa4 {[%emt 0:00:03]} Kxe6 {[%emt 0:00:06]} 57. Kf3 {[%emt 0:00:15]} Kd5 {[%emt 0:00:04]} 58. Ke2 {[%emt 0:00:04]} Kc4 {[%emt 0:00:04]} 59. Kd1 {[%emt 0:00:14]} 1/2-1/2

[Event "Budapest Spring Festival 2019"]
[Site "Budapest"]
[Date "2019.04.12"]
[Round "4.21"]
[White "Lizak, Peter"]
[Black "Kulkarni, Rakesh"]
[Result "1/2-1/2"]
[ECO "A46"]
[WhiteElo "2472"]
[BlackElo "2334"]
[Annotator "ChessBase"]
[PlyCount "41"]
[EventDate "2019.04.09"]
[EventType "swiss"]
[EventCountry "HUN"]
[SourceTitle "playchess.com"]
[Source "ChessBase"]
[SourceQuality "1"]
[TimeControl "40/5400+30:1800+30"]

1. d4 {[%emt 0:00:04]} Nf6 {[%emt 0:07:37]} 2. Nf3 {[%emt 0:00:08]} e6 {[%emt 0:00:38]} 3. Bf4 {[%emt 0:00:17]} c5 {[%emt 0:00:21]} 4. e3 {[%emt 0:00:07]} Nc6 {[%emt 0:00:32]} 5. Nbd2 {[%emt 0:02:22]} d5 {[%emt 0:01:13]} 6. c3 {[%emt 0:00:14]} Bd6 {[%emt 0:01:30]} 7. Bg3 {[%emt 0:00:35]} O-O {[%emt 0:00:32]} 8. Bd3 {[%emt 0:00:11]} Qe7 {[%emt 0:01:32]} 9. Ne5 {[%emt 0:01:13]} Nd7 {[%emt 0:02:53]} 10. Nxd7 {[%emt 0:01:33]} Qxd7 {[%emt 0:00:14]} 11. Bxd6 {[%emt 0:01:13]} Qxd6 {[%emt 0:00:06]} 12. dxc5 {[%emt 0:00:28]} Qxc5 {[%emt 0:00:22]} 13. Bxh7+ {[%emt 0:04:40]} Kxh7 {[%emt 0:00:22]} 14. Qh5+ {[%emt 0:00:08]} Kg8 {[%emt 0:00:06]} 15. Ne4 {[%emt 0:00:07]} g6 {[%emt 0:00:16]} 16. Qg5 {[%emt 0:05:24]} Qe7 {[%emt 0:00:08]} 17. Nf6+ {[%emt 0:00:11]} Kg7 {[%emt 0:00:13]} 18. Nh5+ {[%emt 0:00:08]} Kh7 {[%emt 0:00:06]} 19. Nf6+ {[%emt 0:00:12]} Kg7 {[%emt 0:00:04]} 20. Nh5+ {[%emt 0:00:06]} Kh7 {[%emt 0:00:04]} 21. Nf6+ 1/2-1/2

[Event "Budapest Spring Festival 2019"]
[Site "Budapest"]
[Date "2019.04.12"]
[Round "4.22"]
[White "Henderson de La Fuente, Lance"]
[Black "Stocko, Josip"]
[Result "1-0"]
[ECO "B96"]
[WhiteElo "2471"]
[BlackElo "2317"]
[Annotator "ChessBase"]
[PlyCount "41"]
[EventDate "2019.04.09"]
[EventType "swiss"]
[EventCountry "HUN"]
[SourceTitle "playchess.com"]
[Source "ChessBase"]
[SourceQuality "1"]
[TimeControl "40/5400+30:1800+30"]

1. e4 {[%emt 0:00:06]} c5 {[%emt 0:00:06]} 2. Nf3 {[%emt 0:00:08]} d6 {[%emt 0:00:09]} 3. d4 {[%emt 0:00:33]} cxd4 {[%emt 0:00:07]} 4. Nxd4 {[%emt 0:00:06]} Nf6 {[%emt 0:00:07]} 5. Nc3 {[%emt 0:00:05]} a6 {[%emt 0:00:06]} 6. Bg5 {[%emt 0:00:15]} e6 {[%emt 0:00:34]} 7. f4 {[%emt 0:00:28]} h6 {[%emt 0:00:29]} 8. Bh4 {[%emt 0:00:32]} Qb6 {[%emt 0:01:30]} 9. a3 {[%emt 0:00:54]} Be7 {[%emt 0:01:09]} 10. Bf2 {[%emt 0:00:25]} Qc7 {[%emt 0:00:08]} 11. Qf3 {[%emt 0:00:38]} Nbd7 {[%emt 0:00:50]} 12. O-O-O {[%emt 0:00:32]} g5 {[%emt 0:05:34]} 13. g3 {[%emt 0:04:05]} b5 {[%emt 0:05:39]} 14. Bg2 {[%emt 0:05:38]} Bb7 {[%emt 0:01:39]} 15. Rhe1 {[%emt 0:02:12]} Rg8 {[%emt 0:14:39]} 16. Bh1 {[%emt 0:02:19]} Nc5 {[%emt 0:13:34]} 17. Qe2 {[%emt 0:04:24]} Nfd7 {[%emt 0:17:41]} 18. Nd5 {[%emt 0:07:08]} Qd8 {[%emt 0:14:24]} 19. e5 {[%emt 0:14:09]} Bxd5 {[%emt 0:10:24]} 20. Bxd5 {[%emt 0:00:42]} exd5 {[%emt 0:01:43]} 21. Nc6 {[%emt 0:03:35]} 1-0

[Event "Budapest Spring Festival 2019"]
[Site "Budapest"]
[Date "2019.04.12"]
[Round "4.23"]
[White "Popovic, Milan S"]
[Black "Abdumalik, Zhansaya"]
[Result "1/2-1/2"]
[ECO "A48"]
[WhiteElo "2332"]
[BlackElo "2463"]
[Annotator "ChessBase"]
[PlyCount "85"]
[EventDate "2019.04.09"]
[EventType "swiss"]
[EventCountry "HUN"]
[SourceTitle "playchess.com"]
[Source "ChessBase"]
[SourceQuality "1"]
[TimeControl "40/5400+30:1800+30"]

1. d4 {[%emt 0:00:06]} Nf6 {[%emt 0:00:11]} 2. Nf3 {[%emt 0:00:21]} g6 {[%emt 0:00:35]} 3. Bg5 {[%emt 0:00:14]} Bg7 {[%emt 0:00:24]} 4. e3 {[%emt 0:00:51]} c5 {[%emt 0:01:57]} 5. c3 {[%emt 0:00:49]} d5 {[%emt 0:02:13]} 6. Nbd2 {[%emt 0:00:56]} b6 {[%emt 0:02:05]} 7. Bb5+ {[%emt 0:04:18]} Bd7 {[%emt 0:02:20]} 8. a4 {[%emt 0:02:22]} a6 {[%emt 0:04:09]} 9. Be2 {[%emt 0:02:41]} Bf5 {[%emt 0:10:18]} 10. Bf4 {[%emt 0:12:50]} O-O {[%emt 0:02:45]} 11. O-O {[%emt 0:01:38]} h6 {[%emt 0:05:05]} 12. Ne5 {[%emt 0:10:31]} Re8 {[%emt 0:06:02]} 13. Bf3 {[%emt 0:13:22]} g5 {[%emt 0:04:45]} 14. Bg3 {[%emt 0:01:21]} e6 {[%emt 0:00:48]} 15. Re1 {[%emt 0:23:13]} Nbd7 {[%emt 0:05:02]} 16. h3 {[%emt 0:04:36]} Bh7 {[%emt 0:14:38]} 17. Qe2 {[%emt 0:04:35]} Qc8 {[%emt 0:03:13]} 18. Bh2 {[%emt 0:04:40]} Ra7 {[%emt 0:05:16]} 19. c4 {[%emt 0:05:55]} Bf8 {[%emt 0:07:33]} 20. Rac1 {[%emt 0:01:30]} a5 {[%emt 0:05:54]} 21. Nb1 {[%emt 0:01:33]} Nxe5 {[%emt 0:02:20]} 22. dxe5 {[%emt 0:01:00]} Nd7 {[%emt 0:01:59]} 23. Nc3 {[%emt 0:01:07]} d4 {[%emt 0:01:41]} 24. Nb5 {[%emt 0:00:08]} Ra6 {[%emt 0:00:43]} 25. Rcd1 {[%emt 0:01:09]} d3 {[%emt 0:00:50]} 26. Qd2 {[%emt 0:00:24]} Rd8 {[%emt 0:00:25]} 27. Qc3 {[%emt 0:00:30]} Nb8 {[%emt 0:02:39]} 28. Rd2 {[%emt 0:00:03]} Nc6 {[%emt 0:00:37]} 29. Bxc6 {[%emt 0:00:03]} Qxc6 {[%emt 0:00:05]} 30. f3 {[%emt 0:00:19]} Raa8 {[%emt 0:02:23]} 31. e4 {[%emt 0:00:05]} Rd7 {[%emt 0:00:53]} 32. Rxd3 {[%emt 0:00:22]} Rad8 {[%emt 0:00:12]} 33. Red1 {[%emt 0:00:07]} Bg6 {[%emt 0:01:32]} 34. Bg3 {[%emt 0:01:39]} h5 {[%emt 0:00:20]} 35. b3 {[%emt 0:00:46]} Be7 {[%emt 0:00:16]} 36. Kf1 {[%emt 0:00:39]} Kg7 {[%emt 0:00:55]} 37. Rxd7 {[%emt 0:00:37]} Rxd7 {[%emt 0:00:02]} 38. Rxd7 {[%emt 0:00:40]} Qxd7 {[%emt 0:00:01]} 39. Ke2 {[%emt 0:00:06]} g4 {[%emt 0:00:49]} 40. h4 {[%emt 0:00:00]} gxf3+ {[%emt 0:00:00]} 41. gxf3 {[%emt 0:01:55]} Qd8 {[%emt 0:08:20]} 42. Qe1 {[%emt 0:02:30]} Kh7 {[%emt 0:00:25]} 43. Qf2 {[%emt 0:04:52]} 1/2-1/2

[Event "Budapest Spring Festival 2019"]
[Site "Budapest"]
[Date "2019.04.12"]
[Round "4.24"]
[White "Skomorokhin, Roman"]
[Black "Ankit, R. Rajpara"]
[Result "1/2-1/2"]
[ECO "A05"]
[WhiteElo "2318"]
[BlackElo "2462"]
[Annotator "ChessBase"]
[PlyCount "121"]
[EventDate "2019.04.09"]
[EventType "swiss"]
[EventCountry "HUN"]
[SourceTitle "playchess.com"]
[Source "ChessBase"]
[SourceQuality "1"]
[TimeControl "40/5400+30:1800+30"]

1. Nf3 {[%emt 0:04:47]} Nf6 {[%emt 0:00:17]} 2. c4 {[%emt 0:00:29]} e6 {[%emt 0:00:20]} 3. Nc3 {[%emt 0:00:25]} d5 {[%emt 0:00:20]} 4. e3 {[%emt 0:00:29]} c6 {[%emt 0:00:28]} 5. b3 {[%emt 0:01:03]} Bd6 {[%emt 0:00:20]} 6. Bb2 {[%emt 0:00:21]} O-O {[%emt 0:00:28]} 7. d4 {[%emt 0:02:26]} Nbd7 {[%emt 0:01:30]} 8. Bd3 {[%emt 0:00:19]} b6 {[%emt 0:00:44]} 9. O-O {[%emt 0:04:56]} Bb7 {[%emt 0:00:18]} 10. Qc2 {[%emt 0:05:04]} Rc8 {[%emt 0:03:20]} 11. Rad1 {[%emt 0:00:33]} Qe7 {[%emt 0:05:26]} 12. Rfe1 {[%emt 0:01:12]} Bb4 {[%emt 0:18:54]} 13. e4 {[%emt 0:11:18]} dxe4 {[%emt 0:03:08]} 14. Bxe4 {[%emt 0:00:04]} Nxe4 {[%emt 0:03:21]} 15. Qxe4 {[%emt 0:01:59]} Nf6 {[%emt 0:08:17]} 16. Qh4 {[%emt 0:15:44]} Qc7 {[%emt 0:16:03]} 17. Ne5 {[%emt 0:02:56]} Be7 {[%emt 0:01:43]} 18. Qh3 {[%emt 0:06:49]} a6 {[%emt 0:04:37]} 19. Ne2 {[%emt 0:01:27]} Bb4 {[%emt 0:01:45]} 20. Rf1 {[%emt 0:14:25]} Bd6 {[%emt 0:01:18]} 21. Ng3 {[%emt 0:01:50]} c5 22. Rfe1 cxd4 {[%emt 0:06:49]} 23. Bxd4 {[%emt 0:00:53]} Rfd8 {[%emt 0:01:09]} 24. Ng4 {[%emt 0:01:19]} Nxg4 {[%emt 0:07:28]} 25. Qxg4 {[%emt 0:00:07]} f5 {[%emt 0:00:45]} 26. Qg5 {[%emt 0:05:33]} Bf4 {[%emt 0:05:19]} 27. Qh4 {[%emt 0:00:48]} Bxg3 {[%emt 0:02:44]} 28. Qxg3 {[%emt 0:04:46]} b5 {[%emt 0:04:14]} 29. Be5 {[%emt 0:06:21]} Qf7 {[%emt 0:00:57]} 30. cxb5 {[%emt 0:03:25]} axb5 {[%emt 0:00:22]} 31. Rxd8+ {[%emt 0:00:40]} Rxd8 {[%emt 0:00:04]} 32. Rc1 {[%emt 0:00:07]} Rd7 {[%emt 0:01:47]} 33. h4 {[%emt 0:00:26]} h6 {[%emt 0:00:15]} 34. Rc5 {[%emt 0:00:44]} Rd5 {[%emt 0:01:57]} 35. Rxd5 {[%emt 0:01:09]} Bxd5 {[%emt 0:00:03]} 36. a4 {[%emt 0:00:08]} bxa4 {[%emt 0:00:35]} 37. bxa4 {[%emt 0:00:01]} Kh7 {[%emt 0:00:49]} 38. a5 {[%emt 0:01:22]} Qg6 {[%emt 0:00:33]} 39. Qxg6+ {[%emt 0:00:56]} Kxg6 {[%emt 0:00:03]} 40. a6 {[%emt 0:00:00]} Ba8 {[%emt 0:00:00]} 41. g3 {[%emt 0:04:57]} Kh5 {[%emt 0:08:06]} 42. Bxg7 {[%emt 0:01:49]} f4 {[%emt 0:00:05]} 43. Be5 {[%emt 0:14:23]} fxg3 {[%emt 0:01:02]} 44. fxg3 {[%emt 0:00:35]} Kg4 {[%emt 0:00:20]} 45. Kf2 {[%emt 0:00:21]} Kf5 {[%emt 0:00:17]} 46. Bg7 {[%emt 0:00:43]} h5 {[%emt 0:00:19]} 47. Ke3 {[%emt 0:00:11]} e5 {[%emt 0:00:15]} 48. Kd3 {[%emt 0:01:15]} e4+ {[%emt 0:02:17]} 49. Kd4 {[%emt 0:02:54]} Kg4 {[%emt 0:01:46]} 50. Be5 {[%emt 0:00:07]} Bc6 {[%emt 0:01:04]} 51. Bf4 {[%emt 0:01:01]} Ba8 {[%emt 0:00:09]} 52. Ke5 {[%emt 0:01:05]} Bc6 {[%emt 0:00:10]} 53. Ke6 {[%emt 0:02:53]} Ba8 {[%emt 0:00:09]} 54. a7 {[%emt 0:00:17]} Bb7 {[%emt 0:00:32]} 55. Kd6 {[%emt 0:04:23]} Kf3 {[%emt 0:00:20]} 56. Ke5 {[%emt 0:01:20]} Kg4 {[%emt 0:00:41]} 57. Kd4 {[%emt 0:00:29]} Kf3 {[%emt 0:00:12]} 58. Bd6 {[%emt 0:02:08]} e3 {[%emt 0:03:08]} 59. Bf4 {[%emt 0:00:40]} e2 {[%emt 0:00:04]} 60. Bd2 {[%emt 0:00:06]} Kxg3 {[%emt 0:00:07]} 61. Ke3 {[%emt 0:00:27]} 1/2-1/2

[Event "Budapest Spring Festival 2019"]
[Site "Budapest"]
[Date "2019.04.12"]
[Round "4.25"]
[White "Gorodetzky, David"]
[Black "Dixit, Nikhil"]
[Result "1/2-1/2"]
[ECO "B06"]
[WhiteElo "2461"]
[BlackElo "2302"]
[Annotator "ChessBase"]
[PlyCount "65"]
[EventDate "2019.04.09"]
[EventType "swiss"]
[EventCountry "HUN"]
[SourceTitle "playchess.com"]
[Source "ChessBase"]
[SourceQuality "1"]
[TimeControl "40/5400+30:1800+30"]

1. e4 {[%emt 0:00:06]} g6 {[%emt 0:00:07]} 2. d4 {[%emt 0:00:06]} Bg7 {[%emt 0:00:04]} 3. Nc3 {[%emt 0:00:32]} c6 {[%emt 0:00:03]} 4. Nf3 {[%emt 0:02:11]} d6 {[%emt 0:00:02]} 5. h3 {[%emt 0:02:25]} Nf6 {[%emt 0:00:05]} 6. Be3 {[%emt 0:04:11]} O-O {[%emt 0:00:12]} 7. a4 {[%emt 0:00:36]} d5 {[%emt 0:02:06]} 8. e5 {[%emt 0:02:27]} Ne4 {[%emt 0:00:02]} 9. Nxe4 {[%emt 0:02:39]} dxe4 {[%emt 0:00:04]} 10. Ng5 {[%emt 0:00:55]} c5 {[%emt 0:01:31]} 11. c3 {[%emt 0:00:02]} cxd4 {[%emt 0:03:39]} 12. cxd4 {[%emt 0:02:02]} Nc6 {[%emt 0:21:02]} 13. Bc4 {[%emt 0:03:10]} Qa5+ {[%emt 0:11:59]} 14. Qd2 {[%emt 0:00:59]} Qxd2+ {[%emt 0:07:24]} 15. Kxd2 {[%emt 0:00:02]} h6 {[%emt 0:09:11]} 16. Nxe4 {[%emt 0:03:01]} Rd8 {[%emt 0:02:20]} 17. Kc3 {[%emt 0:01:26]} b6 {[%emt 0:01:11]} 18. f3 {[%emt 0:17:09]} Bb7 {[%emt 0:02:26]} 19. Rac1 {[%emt 0:04:22]} Rac8 {[%emt 0:02:33]} 20. b3 {[%emt 0:09:04]} Na5 {[%emt 0:05:01]} 21. Nd2 {[%emt 0:04:41]} Nxc4 {[%emt 0:04:16]} 22. bxc4 {[%emt 0:01:38]} f6 {[%emt 0:01:32]} 23. exf6 {[%emt 0:04:36]} exf6 {[%emt 0:00:42]} 24. Rhe1 {[%emt 0:06:48]} f5 {[%emt 0:01:55]} 25. Rb1 {[%emt 0:05:51]} Bc6 {[%emt 0:04:33]} 26. Ra1 {[%emt 0:04:56]} Rd7 {[%emt 0:00:54]} 27. Bf2 {[%emt 0:00:58]} Bd5 {[%emt 0:04:27]} 28. Kd3 {[%emt 0:01:38]} Bf7 {[%emt 0:00:33]} 29. f4 {[%emt 0:05:19]} Rdc7 {[%emt 0:00:23]} 30. Rac1 {[%emt 0:04:12]} Bf8 {[%emt 0:01:30]} 31. a5 {[%emt 0:05:58]} Bb4 {[%emt 0:05:21]} 32. axb6 {[%emt 0:00:14]} axb6 {[%emt 0:01:39]} 33. Re5 {[%emt 0:01:03]} 1/2-1/2

[Event "Budapest Spring Festival 2019"]
[Site "Budapest"]
[Date "2019.04.12"]
[Round "4.26"]
[White "Ruff, Maximilian"]
[Black "Erenberg, Ariel"]
[Result "1-0"]
[ECO "E32"]
[WhiteElo "2313"]
[BlackElo "2437"]
[Annotator "ChessBase"]
[PlyCount "94"]
[EventDate "2019.04.09"]
[EventType "swiss"]
[EventCountry "HUN"]
[SourceTitle "playchess.com"]
[Source "ChessBase"]
[SourceQuality "1"]
[TimeControl "40/5400+30:1800+30"]

1. d4 {[%emt 0:00:05]} Nf6 {[%emt 0:00:10]} 2. c4 {[%emt 0:00:08]} e6 {[%emt 0:00:04]} 3. Nc3 {[%emt 0:00:43]} Bb4 {[%emt 0:00:05]} 4. Qc2 {[%emt 0:00:07]} b6 {[%emt 0:00:08]} 5. e4 {[%emt 0:02:39]} c5 {[%emt 0:00:32]} 6. d5 {[%emt 0:02:34]} Qe7 {[%emt 0:00:46]} 7. Be2 {[%emt 0:05:53]} d6 {[%emt 0:01:50]} 8. Bd2 {[%emt 0:05:18]} O-O {[%emt 0:05:42]} 9. O-O-O {[%emt 0:03:02]} Bxc3 {[%emt 0:04:14]} 10. Bxc3 {[%emt 0:01:16]} exd5 {[%emt 0:00:07]} 11. exd5 {[%emt 0:01:49]} Ne4 {[%emt 0:00:59]} 12. Bd3 {[%emt 0:18:06]} Nxc3 {[%emt 0:00:26]} 13. bxc3 {[%emt 0:06:02]} h6 {[%emt 0:13:51]} 14. Nf3 {[%emt 0:05:45]} b5 {[%emt 0:01:26]} 15. cxb5 a6 {[%emt 0:02:03]} 16. b6 {[%emt 0:09:48]} Nd7 {[%emt 0:01:43]} 17. Qa4 {[%emt 0:07:31]} Nxb6 {[%emt 0:08:54]} 18. Qe4 {[%emt 0:00:26]} Qxe4 {[%emt 0:00:12]} 19. Bxe4 {[%emt 0:00:04]} Bb7 {[%emt 0:03:47]} 20. g4 {[%emt 0:03:14]} Rae8 {[%emt 0:05:15]} 21. Rhe1 {[%emt 0:00:55]} Nd7 {[%emt 0:01:21]} 22. g5 {[%emt 0:06:06]} hxg5 {[%emt 0:11:32]} 23. Nxg5 {[%emt 0:00:11]} Nf6 {[%emt 0:03:57]} 24. c4 {[%emt 0:02:07]} g6 {[%emt 0:01:27]} 25. Bc2 {[%emt 0:03:13]} Kg7 {[%emt 0:07:36]} 26. Ba4 {[%emt 0:03:28]} Rxe1 {[%emt 0:02:32]} 27. Rxe1 {[%emt 0:00:01]} Ng4 {[%emt 0:02:57]} 28. f4 {[%emt 0:06:34]} Bc8 {[%emt 0:00:16]} 29. Re7 {[%emt 0:00:32]} Nh6 {[%emt 0:03:27]} 30. Rc7 {[%emt 0:01:35]} Nf5 {[%emt 0:01:27]} 31. Kd2 {[%emt 0:04:21]} Kg8 {[%emt 0:01:27]} 32. Kc3 {[%emt 0:00:46]} a5 {[%emt 0:03:14]} 33. Bb5 {[%emt 0:00:26]} Nd4 {[%emt 0:00:35]} 34. Bd7 {[%emt 0:01:12]} Bxd7 {[%emt 0:02:45]} 35. Rxd7 {[%emt 0:00:02]} Ne2+ {[%emt 0:00:21]} 36. Kd2 {[%emt 0:00:09]} Nxf4 {[%emt 0:00:07]} 37. Rxd6 {[%emt 0:00:07]} Re8 {[%emt 0:01:24]} 38. Rf6 {[%emt 0:01:53]} Nh5 {[%emt 0:04:12]} 39. Rc6 {[%emt 0:00:40]} Nf4 {[%emt 0:02:41]} 40. Rxc5 {[%emt 0:00:00]} Re2+ {[%emt 0:00:00]} 41. Kc3 {[%emt 0:02:08]} Rxa2 {[%emt 0:04:13]} 42. d6 {[%emt 0:07:05]} Ne2+ {[%emt 0:02:14]} 43. Kd3 {[%emt 0:01:51]} Nc1+ {[%emt 0:01:41]} 44. Ke4 {[%emt 0:00:41]} Re2+ {[%emt 0:06:25]} 45. Kd5 {[%emt 0:11:31]} Nd3 {[%emt 0:01:58]} 46. Rc8+ {[%emt 0:02:53]} Kg7 {[%emt 0:00:02]} 47. d7 {[%emt 0:01:15]} Nb4+ {[%emt 0:00:37]} 1-0